bitfinex/quotes_ETHUSD_20240927
["timestamp","ask_amount","ask_price","bid_price","bid_amount"]
[1727464800046,0.8292,2708.3,2707.9,3.69282]
[1727464800199,0.8292,2708.3,2708.0,3.69272]
[1727464800708,3.69209,2708.5,2708.1,3.69261]
[1727464802239,3.69209,2708.5,2708.0,3.69275]
[1727464802447,4.5211,2708.7,2708.2,3.69235]
[1727464803507,0.8292,2708.7,2708.2,3.69235]
[1727464803743,0.8292,2708.7,2708.3,3.69229]
[1727464803947,4.52105,2708.7,2708.2,4.49515]
[1727464804099,0.8292,2708.7,2708.3,3.69233]
[1727464804938,4.85155707,2709.0,2708.5,3.69206]
[1727464805145,3.69148,2709.0,2708.3,8.08692347]
[1727464805313,3.6916,2708.9,2708.4,3.69217]
[1727464805500,3.69148,2709.0,2708.5,3.69201]
[1727464805704,0.8522,2709.1,2708.7,3.6918]
[1727464805907,8.47472694,2709.1,2708.5,7.38398]
[1727464806133,8.47472694,2709.1,2708.5,3.69197]
[1727464806134,4.54346,2709.1,2708.5,3.69197]
[1727464806563,8.23483,2709.1,2708.6,3.69192]
[1727464806969,3.6914,2709.0,2708.6,3.69192]
[1727464808244,3.6914,2709.0,2708.4,3.6922]
[1727464808464,3.6914,2709.0,2708.5,3.69205]
[1727464808640,7.38287,2709.0,2708.5,3.69205]
[1727464809035,0.8522,2709.1,2708.9,3.69145]
[1727464809343,3.69089,2709.4,2709.0,3.69139]
[1727464809548,0.56523471,2709.7,2709.1,3.57590547]
[1727464809742,1.54676943,2709.9,2709.4,3.69078]
[1727464809743,0.8717,2709.8,2709.4,3.69078]
[1727464810364,3.68956,2710.4,2709.0,3.69136]
[1727464810365,1.54676943,2710.4,2709.9,4.56706]
[1727464810568,0.8654,2710.6,2709.9,4.56706]
[1727464810569,0.8654,2710.6,2710.2,3.68974]
[1727464810859,3.68935,2710.5,2710.1,3.68988]
[1727464811180,0.8654,2710.6,2710.4,3.68942]
[1727464811482,3.68893,2710.9,2710.4,3.68942]
[1727464812038,0.8365,2711.4,2710.9,3.68873]
[1727464812293,3.68908,2710.7,2710.6,0.8374]
[1727464812467,3.68908,2710.7,2710.1,3.57590547]
[1727464812848,3.68923,2710.6,2710.1,3.57590547]
[1727464813442,4.4919,2710.9,2710.1,7.26578547]
[1727464813671,0.803,2710.9,2710.2,3.68973]
[1727464813978,3.68916,2710.7,2710.1,7.26578547]
[1727464814149,3.68946,2710.5,2709.7,4.55614]
[1727464814350,4.49272,2710.3,2709.8,3.69028]
[1727464814774,3.68969,2710.3,2709.8,3.69028]
[1727464815739,3.68969,2710.3,2709.8,3.69023]
[1727464816541,3.68969,2710.3,2709.8,7.38045]
[1727464816954,0.368946,2710.4,2709.9,3.69012]
[1727464817447,4.058516,2710.4,2709.8,7.38043]
[1727464817883,4.058516,2710.4,2709.9,3.69017]
[1727464818880,0.368946,2710.4,2709.9,3.69017]
[1727464819479,4.058446,2710.4,2709.8,7.38044]
[1727464820079,4.058446,2710.4,2709.9,3.69013]
[1727464821350,0.368946,2710.4,2709.9,3.69009]
[1727464821546,0.803,2710.8,2709.9,3.57590547]
[1727464821760,0.7967,2711.4,2710.3,3.68953]
[1727464821970,3.68881,2710.9,2710.4,3.6894]
[1727464822248,3.68863,2711.1,2710.5,3.68935]
[1727464822479,3.68863,2711.1,2710.6,3.6891]
[1727464822682,3.68863,2711.1,2710.5,3.68935]
[1727464822847,3.68863,2711.1,2710.5,3.68922]
[1727464823044,3.68863,2711.1,2710.6,3.68917]
[1727464826395,7.37726,2711.1,2710.6,3.68917]
[1727464826582,3.68863,2711.1,2710.6,3.68917]
[1727464827294,3.68862,2711.1,2710.5,3.68922]
[1727464827453,3.68876,2711.0,2710.5,7.3785]
[1727464827987,3.68876,2711.0,2710.5,3.68922]
[1727464829105,3.68876,2711.0,2710.5,7.3785]
[1727464829593,3.68876,2711.0,2710.5,3.68922]
[1727464829952,3.68861,2711.1,2710.6,3.68919]
[1727464830596,7.37726,2711.1,2710.6,3.68919]
[1727464830955,3.68861,2711.1,2710.6,3.68919]
[1727464831158,3.68861,2711.1,2710.6,4.427031]
[1727464831697,3.6887,2711.0,2710.6,0.737841]
[1727464832189,3.68861,2711.1,2710.7,0.06131145]
[1727464833211,7.37725,2711.1,2710.7,0.06131145]
[1727464834293,3.68861,2711.1,2710.7,3.75035145]
[1727464834493,3.6884,2711.2,2710.7,5.13364923]
[1727464834708,3.68854,2711.1,2710.7,5.13364923]
[1727464834870,0.7967,2711.4,2710.7,5.13364923]
[1727464834871,0.7967,2711.4,2711.1,3.68852]
[1727464835073,3.68801,2711.5,2710.9,10.95328547]
[1727464835393,3.68801,2711.5,2711.2,0.05522201]
[1727464835695,3.68801,2711.5,2711.3,0.05516711]
[1727464835991,3.68801,2711.5,2711.0,4.48702386]
[1727464836207,3.68801,2711.5,2711.4,0.05511221]
[1727464836495,3.68864,2711.1,2710.5,3.68926]
[1727464836663,3.68841,2711.2,2710.7,3.68895]
[1727464837461,3.68841,2711.2,2710.8,0.05317945]
[1727464837654,3.68841,2711.2,2710.7,3.68895]
[1727464837855,3.68826,2711.3,2710.7,3.76273016]
[1727464838060,4.51513,2711.4,2710.9,3.68869]
[1727464838281,4.51513,2711.4,2710.8,7.31802492]
[1727464838483,0.827,2711.4,2711.0,0.05310148]
[1727464838688,0.827,2711.4,2710.6,3.68913]
[1727464838689,3.68853,2711.1,2710.6,3.68913]
[1727464839088,3.68888,2710.9,2710.5,0.37994]
[1727464839292,4.56328,2710.9,2710.4,4.48879]
[1727464840299,3.68908,2710.7,2710.0,7.50173]
[1727464840505,3.68937,2710.5,2710.0,7.50173]
[1727464840706,3.68937,2710.5,2709.7,0.8118]
[1727464840707,0.8744,2710.5,2709.7,0.8118]
[1727464841003,3.69031,2709.8,2709.4,0.8118]
[1727464841306,0.8744,2709.9,2709.4,3.69075]
[1727464841482,0.8744,2709.9,2709.6,3.69055]
[1727464841868,0.8744,2709.9,2709.6,0.73813]
[1727464842066,0.8744,2709.9,2709.6,4.42869]
[1727464842407,4.56606,2710.2,2709.7,3.69036]
[1727464842579,0.8762,2710.2,2709.7,4.48696]
[1727464842786,0.8762,2710.2,2709.8,4.138876]
[1727464844817,3.6899,2710.1,2709.8,0.448696]
[1727464844980,3.6899,2710.1,2709.7,3.69044]
[1727464845625,3.6899,2710.1,2709.6,3.69051]
[1727464845819,7.3799,2710.1,2709.6,3.69051]
[1727464845987,3.6899,2710.1,2709.6,4.514238]
[1727464846731,3.6899,2710.1,2709.7,3.69041]
[1727464847026,3.6899,2710.1,2709.6,0.823728]
[1727464847027,3.6899,2710.1,2709.6,4.514268]
[1727464848417,0.8762,2710.2,2709.4,0.8561]
[1727464848418,4.56596,2710.2,2709.7,4.17845078]
[1727464848594,4.56596,2710.2,2709.7,3.69035]
[1727464849208,0.8762,2710.2,2709.8,3.69024]
[1727464849388,0.8762,2710.2,2709.8,4.428299]
[1727464849596,0.8762,2710.2,2709.8,3.69024]
[1727464850221,3.68946,2710.5,2709.9,3.69009]
[1727464850222,4.5099,2710.4,2709.9,3.69009]
[1727464850383,0.8204,2710.4,2710.1,3.68988]
[1727464850823,4.50989,2710.4,2709.9,3.69008]
[1727464851129,0.8204,2710.4,2710.0,3.68997]
[1727464851331,3.6897,2710.3,2709.8,3.69026]
[1727464851637,3.6897,2710.3,2709.9,3.69017]
[1727464852534,4.5099,2710.4,2710.0,0.05486203]
[1727464853707,3.68987,2710.2,2710.0,0.05486203]
[1727464854006,3.6899,2710.1,2710.0,0.05486203]
[1727464854533,3.6899,2710.1,2709.6,3.6905]
[1727464854874,3.6899,2710.1,2710.0,0.05486203]
[1727464855035,3.6899,2710.1,2709.6,7.83568]
[1727464855234,3.6899,2710.1,2710.0,0.05486203]
[1727464855399,3.6899,2710.1,2709.7,3.69043]
[1727464855717,3.6899,2710.1,2709.6,4.14516]
[1727464855900,3.6899,2710.1,2709.8,0.05497726]
[1727464856108,0.8525,2709.9,2709.5,6.69067]
[1727464856304,4.54273,2709.9,2709.4,3.69084]
[1727464856505,0.8525,2709.9,2709.2,3.69102]
[1727464856759,3.69035,2709.8,2709.3,3.69091]
[1727464857515,3.69092,2709.4,2708.8,3.69157]
[1727464858045,3.69092,2709.4,2708.9,3.0]
[1727464858522,3.69092,2709.4,2709.0,3.69137]
[1727464859233,0.8162,2709.2,2708.8,3.69157]
[1727464859439,4.50732,2709.2,2708.6,0.8311]
[1727464859623,3.69141,2709.0,2708.6,0.8311]
[1727464859947,0.8725,2708.7,2707.8,8.1533]
[1727464860151,5.11018938,2709.1,2707.7,3.57590547]
[1727464860152,3.57590547,2708.9,2707.9,3.69282]
[1727464860469,3.57590547,2708.9,2707.3,7.35]
[1727464860470,3.69265,2708.1,2707.3,10.92590547]
[1727464860752,0.8725,2708.0,2707.6,3.69326]
[1727464860949,0.8725,2708.0,2707.6,3.69322]
[1727464861125,0.8725,2708.0,2707.7,3.69307]
[1727464861319,0.8725,2708.0,2707.9,3.69289]
[1727464861523,0.8033,2708.3,2707.8,3.69292]
[1727464862405,0.8033,2708.3,2707.9,3.69283]
[1727464862519,0.8033,2708.3,2707.6,3.69324]
[1727464862735,3.69257,2708.2,2707.6,3.69324]
[1727464863323,3.69275,2708.1,2707.6,3.69324]
[1727464863540,3.69283,2708.0,2707.4,7.05109055]
[1727464863723,0.8033,2708.3,2707.2,3.69374]
[1727464863724,0.8779,2707.7,2707.2,3.69374]
[1727464864263,0.8779,2707.7,2707.3,3.69364]
[1727464864415,0.8779,2707.7,2707.2,3.69374]
[1727464864612,0.8779,2707.7,2707.2,7.38751]
[1727464864813,0.8779,2707.7,2707.3,3.69363]
[1727464865052,0.8779,2707.7,2707.2,3.69374]
[1727464865272,4.57109,2707.7,2707.2,3.69374]
[1727464865611,0.8779,2707.7,2707.2,3.69374]
[1727464865819,0.8779,2707.7,2707.0,3.69407]
[1727464865820,3.6934,2707.6,2707.0,3.69407]
[1727464866125,3.6934,2707.6,2707.0,3.69405]
[1727464866329,3.6934,2707.6,2707.0,7.3881]
[1727464866759,3.6934,2707.6,2707.1,3.69398]
[1727464866933,4.57118,2707.7,2707.1,3.69398]
[1727464867671,4.57118,2707.7,2706.8,3.0]
[1727464867672,3.69371,2707.3,2707.2,0.04924528]
[1727464867841,4.56711,2707.3,2707.2,0.04924528]
[1727464868163,4.56711,2707.3,2707.2,0.04704675]
[1727464868368,3.69402,2707.1,2706.6,3.69465]
[1727464870144,0.456711,2707.2,2706.6,3.69465]
[1727464870145,0.456711,2707.2,2706.6,3.69459]
[1727464870334,0.8734,2707.3,2706.7,3.69447]
[1727464870528,0.8734,2707.3,2706.8,3.69431]
[1727464870768,0.8734,2707.3,2706.9,3.69425]
[1727464871064,3.69385,2707.2,2706.7,3.69439]
[1727464871267,3.694,2707.1,2706.5,3.69471]
[1727464871473,3.69385,2707.2,2706.6,6.69456]
[1727464871832,3.69385,2707.2,2706.6,3.0]
[1727464872032,4.98626732,2707.3,2706.8,3.69438]
[1727464872265,4.56719,2707.3,2706.8,3.69438]
[1727464872973,8.2367,2707.6,2707.2,3.69378]
[1727464873271,0.8467,2707.6,2707.2,7.38756]
[1727464873432,0.8467,2707.6,2707.3,3.69369]
[1727464874059,0.8467,2707.6,2707.2,3.69378]
[1727464874366,0.8467,2707.6,2707.2,3.69377]
[1727464874942,0.8467,2708.0,2707.4,3.69351]
[1727464875265,4.53958,2708.0,2707.2,4.432531]
[1727464875468,3.69305,2707.8,2707.3,3.6937]
[1727464876276,7.38618,2707.8,2707.3,3.6937]
[1727464876569,3.69305,2707.8,2707.3,3.6937]
[1727464876868,3.69295,2707.9,2707.4,3.69356]
[1727464878643,0.8683,2707.8,2706.8,3.69429]
[1727464878851,0.8683,2707.3,2706.9,3.0]
[1727464879364,3.69399,2707.1,2706.7,3.0]
[1727464880158,3.69427,2706.9,2706.3,4.48918]
[1727464880334,3.69467,2706.6,2706.2,3.69513]
[1727464880653,0.8786,2706.8,2706.1,3.69524]
[1727464880654,3.69463,2706.7,2706.1,3.69524]
[1727464880859,7.38926,2706.7,2706.1,3.69524]
[1727464881173,3.6947,2706.6,2706.1,3.69524]
[1727464881738,3.69463,2706.7,2706.1,3.69524]
[1727464882069,3.69469,2706.6,2706.1,3.69524]
[1727464882441,4.151943,2706.7,2706.2,3.69519]
[1727464882442,4.151863,2706.7,2706.2,3.69519]
[1727464882651,4.151863,2706.7,2706.2,3.74189247]
[1727464882934,4.151863,2706.7,2706.2,7.43708247]
[1727464883370,4.151863,2706.7,2706.2,3.74189247]
[1727464884076,4.151863,2706.7,2706.2,7.43699247]
[1727464884241,4.151863,2706.7,2706.2,3.74180247]
[1727464884441,4.151863,2706.7,2706.2,7.43692247]
[1727464885335,4.151863,2706.7,2706.2,3.74180247]
[1727464885666,4.151863,2706.7,2706.3,3.69504]
[1727464885977,3.69454,2706.7,2706.4,0.04518905]
[1727464886142,3.69454,2706.7,2706.2,7.39024]
[1727464886469,3.69454,2706.7,2706.5,0.04513396]
[1727464886673,0.826741,2706.7,2706.3,3.69505]
[1727464886973,3.69462,2706.7,2706.2,3.6951]
[1727464887176,4.573,2706.8,2706.4,0.04380978]
[1727464887401,0.8786,2706.8,2706.3,0.04386488]
[1727464887578,0.8786,2706.8,2706.6,3.69466]
[1727464888049,0.8786,2706.8,2706.7,0.0439802]
[1727464888251,0.8786,2706.8,2706.7,3.7385102]
[1727464888563,11.08392,2707.2,2706.7,3.7385102]
[1727464888564,7.39,2707.2,2706.7,0.0439802]
[1727464888782,11.08392,2707.2,2706.7,0.0439802]
[1727464888953,3.6942,2707.0,2706.7,0.0439802]
[1727464889155,3.69427,2706.9,2706.4,3.69493]
[1727464889357,4.52207,2706.8,2706.3,3.69508]
[1727464889557,4.52207,2706.8,2706.0,4.50763]
[1727464889796,4.52207,2706.8,2706.3,3.69508]
[1727464889998,4.974277,2706.8,2706.0,3.0]
[1727464890182,3.69455,2706.7,2706.2,7.39024]
[1727464890393,3.69455,2706.7,2706.2,3.6951]
[1727464891102,3.69455,2706.7,2706.3,3.69507]
[1727464891257,3.69455,2706.7,2706.0,3.69538]
[1727464891462,3.69455,2706.7,2706.2,3.69512]
[1727464891663,3.69455,2706.7,2706.2,7.39024]
[1727464892595,3.69455,2706.7,2706.3,3.69506]
[1727464893978,1.279807,2706.8,2706.3,3.69506]
[1727464894180,4.52204,2706.8,2706.3,3.69506]
[1727464894595,0.8234,2707.1,2706.6,3.57590547]
[1727464894765,7.39,2707.2,2706.9,3.69418]
[1727464894960,4.51712,2707.3,2706.9,3.69418]
[1727464895897,3.69386,2707.2,2706.7,4.05202055]
[1727464896291,3.69419,2707.0,2706.4,3.69483]
[1727464896468,0.8234,2706.9,2706.4,3.69483]
[1727464897296,0.8234,2706.9,2706.5,3.69478]
[1727464897493,0.8234,2706.9,2706.3,3.69502]
[1727464897494,4.51773,2706.9,2706.4,3.69491]
[1727464897683,4.51773,2706.9,2706.6,0.03796526]
[1727464897881,4.51773,2706.9,2706.7,0.03791017]
[1727464898082,4.51773,2706.9,2706.4,3.69491]
[1727464898281,4.51773,2706.9,2706.5,3.69479]
[1727464898500,4.51773,2706.9,2706.5,3.73281036]
[1727464898870,4.51773,2706.9,2706.5,0.03802036]
[1727464899092,3.69447,2706.8,2706.3,3.695]
[1727464899369,3.69447,2706.8,2706.4,0.03807545]
[1727464901019,1.275173,2706.9,2706.4,3.73292545]
[1727464901214,0.8234,2706.9,2706.4,3.73292545]
[1727464901509,4.51769,2706.9,2706.4,3.73292545]
[1727464902391,0.8234,2706.9,2706.5,3.69473]
[1727464902568,0.8234,2706.9,2706.5,3.7420538]
[1727464902975,3.69408,2707.1,2706.6,3.69465]
[1727464902976,4.53758,2707.1,2706.6,3.69465]
[1727464903277,4.53758,2707.1,2706.7,3.69452]
[1727464903710,4.53758,2707.1,2706.8,0.05180828]
[1727464903919,3.69417,2707.0,2706.8,0.05180828]
[1727464904102,4.53758,2707.1,2706.6,3.69455]
[1727464904783,4.53758,2707.1,2706.7,0.04324242]
[1727464905675,0.8435,2707.1,2706.7,3.73770242]
[1727464906009,4.53753,2707.1,2706.7,0.04324242]
[1727464907120,3.69393,2707.2,2706.7,3.73770242]
[1727464907320,7.38786,2707.2,2706.7,3.73776242]
[1727464907627,0.8337,2707.1,2706.7,3.73776242]
[1727464908621,0.8337,2707.1,2706.8,3.69436]
[1727464908781,3.69377,2707.3,2706.8,3.74597643]
[1727464908987,4.50197,2707.3,2706.8,3.74597643]
[1727464909719,3.69386,2707.2,2706.8,3.74597643]
[1727464911633,3.69386,2707.2,2706.8,0.05161643]
[1727464912238,3.69386,2707.2,2706.9,0.05138194]
[1727464912612,3.69386,2707.2,2706.7,3.69452]
[1727464912810,3.69386,2707.2,2707.0,0.05129932]
[1727464913011,3.69386,2707.2,2706.7,3.69452]
[1727464913435,1.96533357,2707.3,2706.8,0.05146456]
[1727464913653,1.96533357,2707.3,2706.8,3.74572456]
[1727464913654,5.65904357,2707.3,2706.8,3.74572456]
[1727464913803,5.65904357,2707.3,2706.8,3.69426]
[1727464914131,4.85084357,2707.3,2707.0,0.7974]
[1727464914331,1.15713357,2707.3,2707.0,0.7974]
[1727464914537,1.15713357,2707.3,2707.1,0.05121671]
[1727464914842,4.85081357,2707.4,2707.1,0.05121671]
[1727464915134,1.15713357,2707.3,2707.1,0.05121671]
[1727464919158,1.15713357,2707.3,2707.2,3.69385]
[1727464919359,1.15713357,2707.5,2707.2,3.69385]
[1727464919562,1.15713357,2707.6,2707.4,3.57590547]
[1727464919736,1.15713357,2707.6,2707.4,4.31478347]
[1727464919937,1.15713357,2707.6,2707.5,0.05072648]
[1727464920334,1.15713357,2707.6,2707.5,3.74416648]
[1727464920660,1.53428391,2707.8,2707.5,3.74416648]
[1727464920661,1.15713357,2707.7,2707.5,3.74416648]
[1727464920879,1.15713357,2707.7,2707.6,3.6933]
[1727464921166,1.15713357,2707.8,2707.7,4.52027]
[1727464921372,1.15713357,2708.2,2708.0,3.69276]
[1727464921526,1.15713357,2708.3,2708.1,3.57590547]
[1727464921727,1.15713357,2708.4,2708.3,3.69235]
[1727464921928,1.15713357,2708.7,2708.3,7.32313864]
[1727464922235,1.15713357,2708.8,2708.5,3.69194]
[1727464922428,1.15713357,2708.9,2708.5,3.69194]
[1727464922734,1.15713357,2708.9,2708.6,0.0614341]
[1727464922735,4.84875357,2708.9,2708.6,0.0614341]
[1727464922938,3.69167,2708.8,2708.3,3.69226]
[1727464923660,4.84853357,2709.0,2708.4,3.7538304]
[1727464923870,3.6916,2708.9,2708.4,3.7538304]
[1727464924226,1.53428391,2709.1,2708.7,3.57590547]
[1727464924227,1.15713357,2709.1,2708.7,3.57590547]
[1727464924427,1.15713357,2709.1,2708.4,0.0616404]
[1727464924428,0.8742,2709.4,2709.3,3.69099]
[1727464924629,1.15713357,2710.3,2709.8,4.51733]
[1727464924873,3.68977,2710.2,2709.8,0.8271]
[1727464926360,3.68951,2710.4,2709.8,0.8271]
[1727464926667,3.68967,2710.3,2709.8,0.8271]
[1727464927946,3.68993,2710.1,2709.6,3.69048]
[1727464928146,3.68971,2710.3,2709.7,3.69042]
[1727464928546,3.68987,2710.2,2709.5,3.6906]
[1727464928868,3.68997,2710.1,2709.6,0.0805374]
[1727464930070,4.51747,2709.9,2709.6,0.0805374]
[1727464930267,8.20776,2709.9,2709.1,8.08087547]
[1727464930466,8.20774,2709.9,2709.3,3.69098]
[1727464930645,3.69038,2709.8,2709.3,3.69098]
[1727464930966,3.69038,2709.8,2709.1,8.08087547]
[1727464930967,3.69047,2709.7,2709.1,8.08085547]
[1727464931172,7.38104,2709.7,2709.1,4.50495]
[1727464931335,7.38104,2709.7,2709.1,8.19613]
[1727464931336,3.69047,2709.7,2709.1,8.19613]
[1727464931757,3.69047,2709.7,2709.2,3.69112]
[1727464931957,3.69047,2709.7,2709.1,4.50495]
[1727464932161,3.69047,2709.7,2709.1,8.19612]
[1727464933470,3.69047,2709.7,2709.2,3.69109]
[1727464934636,3.69047,2709.7,2709.1,0.8138]
[1727464934837,3.69073,2709.5,2709.1,0.8138]
[1727464935049,3.69073,2709.5,2708.9,3.69144]
[1727464935050,3.69092,2709.4,2708.9,3.69144]
[1727464935387,0.738165,2709.4,2708.8,4.50546]
[1727464935681,3.69079,2709.5,2708.8,4.50546]
[1727464935968,3.69079,2709.5,2708.9,3.69145]
[1727464936266,3.69079,2709.5,2708.8,4.50546]
[1727464936267,3.69099,2709.3,2708.8,4.50546]
[1727464936682,3.69099,2709.3,2708.8,4.50538]
[1727464936972,3.69079,2709.5,2708.8,4.50538]
[1727464937171,3.69079,2709.5,2709.0,3.69138]
[1727464938445,3.69079,2709.5,2708.8,8.83177347]
[1727464938659,3.69102,2709.3,2708.8,8.08123547]
[1727464939173,3.69099,2709.3,2708.8,3.69153]
[1727464939475,3.69071,2709.5,2708.8,3.69161]
[1727464939640,3.69071,2709.5,2709.0,7.38258]
[1727464940467,4.52457,2709.7,2709.0,3.69127]
[1727464940680,5.7981044,2709.7,2709.2,3.69111]
[1727464941358,3.6907,2709.6,2709.0,3.69127]
[1727464942444,3.6907,2709.6,2709.1,3.69124]
[1727464942861,7.39,2709.9,2709.5,3.6907]
[1727464943034,0.8171,2710.0,2709.4,0.8498]
[1727464943240,0.8171,2710.3,2710.0,3.69]
[1727464943548,0.8171,2710.3,2709.2,3.69109]
[1727464943549,0.38620234,2710.5,2710.2,3.68966]
[1727464943754,0.38620234,2710.5,2709.9,4.42570547]
[1727464943755,0.8171,2710.7,2710.0,0.07379147]
[1727464944073,4.50629,2710.7,2710.2,3.68967]
[1727464944260,3.68923,2710.6,2709.9,0.8498]
[1727464944465,3.68949,2710.4,2709.9,4.53996]
[1727464944854,3.68949,2710.4,2709.9,4.52838217]
[1727464945176,3.68949,2710.4,2709.6,10.26637547]
[1727464945177,3.68971,2710.3,2709.8,3.0]
[1727464945877,3.68971,2710.3,2709.8,6.69029]
[1727464946171,3.68948,2710.5,2709.9,3.69014]
[1727464946385,3.6895,2710.4,2709.9,3.69014]
[1727464946739,3.6897,2710.3,2709.7,7.38068]
[1727464947004,3.68982,2710.2,2709.7,3.69034]
[1727464947286,1.229082,2710.1,2709.7,3.69034]
[1727464947450,0.8601,2710.1,2709.7,3.69034]
[1727464947658,3.68957,2710.4,2710.0,3.69002]
[1727464947853,3.68957,2710.4,2709.9,4.54037]
[1727464948068,3.68957,2710.4,2710.0,3.69003]
[1727464948380,3.68973,2710.3,2709.9,0.8502]
[1727464948586,4.56225853,2710.4,2709.8,3.69019]
[1727464948884,3.68977,2710.2,2709.8,3.69019]
[1727464949081,0.8423,2710.1,2709.4,3.69077]
[1727464950050,3.68984,2710.2,2709.5,3.69061]
[1727464950272,3.68984,2710.2,2709.7,3.69036]
[1727464950479,4.55186,2710.4,2709.8,3.6902]
[1727464950480,8.24146,2710.4,2709.8,3.6902]
[1727464950642,4.55186,2710.4,2709.8,3.6902]
[1727464950849,4.55186,2710.4,2709.9,3.69014]
[1727464951051,8.24146,2710.4,2709.9,3.69014]
[1727464951245,4.55186,2710.4,2709.9,3.69014]
[1727464951481,8.24147,2710.4,2709.9,3.69014]
[1727464951690,3.68969,2710.3,2709.8,4.5164]
[1727464952508,3.68978,2710.2,2709.8,4.51046208]
[1727464952689,3.68978,2710.2,2709.8,0.82016208]
[1727464953491,3.68978,2710.2,2709.8,4.51044208]
[1727464954572,3.68962,2710.3,2709.8,4.51044208]
[1727464957057,3.68978,2710.2,2709.8,4.51044208]
[1727464957257,5.1051306,2710.4,2709.8,4.51044208]
[1727464957258,3.68967,2710.3,2709.8,4.51044208]
[1727464958486,5.1051306,2710.4,2709.8,4.51044208]
[1727464958790,3.68976,2710.2,2709.8,4.51044208]
[1727464958992,3.68976,2710.2,2709.8,0.82016208]
[1727464959183,3.68976,2710.2,2709.8,4.51045208]
[1727464960493,3.6899,2710.1,2709.8,0.82016208]
[1727464960691,3.69031,2709.8,2709.5,0.8318]
[1727464961398,3.69005,2710.0,2709.5,4.5225]
[1727464962590,3.69017,2709.9,2709.5,4.5225]
[1727464962970,3.69005,2710.0,2709.5,4.5225]
[1727464963572,3.69005,2710.0,2709.6,3.69057]
[1727464964562,3.69005,2710.0,2709.5,4.52251]
[1727464965067,3.69005,2710.0,2709.5,0.8318]
[1727464965068,0.737992,2710.0,2709.5,0.8318]
[1727464965269,3.69064,2709.6,2709.1,7.26706547]
[1727464965907,3.69064,2709.6,2708.5,8.2258]
[1727464965908,3.69128,2709.1,2708.5,8.2258]
[1727464966105,0.8759,2709.1,2708.5,0.8758]
[1727464966410,0.8759,2709.1,2708.7,3.69179]
[1727464966585,3.69106,2709.3,2708.8,3.6916]
[1727464966779,3.69093,2709.4,2708.9,7.26736547]
[1727464966985,0.8759,2710.0,2709.3,3.57590547]
[1727464967304,4.56594,2710.0,2709.5,4.53044]
[1727464967552,0.8759,2710.0,2709.6,3.69049]
[1727464967710,11.07971,2710.3,2709.5,4.53044]
[1727464967711,3.68982,2710.2,2709.7,3.69033]
[1727464968007,11.07971,2710.3,2709.8,3.69027]
[1727464968008,4.51831,2710.3,2709.8,3.69027]
[1727464968329,4.51831,2710.3,2709.8,3.6903]
[1727464968625,8.20806,2710.3,2709.8,3.6903]
[1727464968792,3.68979,2710.2,2709.7,7.26633547]
[1727464968989,3.68979,2710.2,2709.7,3.69043]
[1727464970925,0.8286,2710.3,2709.7,4.13553055]
[1727464971116,0.8286,2710.3,2709.8,3.69023]
[1727464971117,3.68969,2710.3,2709.8,3.69023]
[1727464972377,3.68977,2710.2,2709.8,3.69023]
[1727464973090,3.68977,2710.2,2709.7,3.69044]
[1727464973918,4.5614,2710.1,2709.7,3.69044]
[1727464974098,0.8715,2710.1,2709.7,3.69044]
[1727464975488,3.69004,2710.0,2709.5,0.8398]
[1727464975795,3.69004,2710.0,2709.6,3.69057]
[1727464976003,3.69004,2710.0,2709.5,0.8398]
[1727464976004,0.825139,2710.0,2709.5,0.8398]
[1727464976323,0.825139,2710.0,2709.3,3.69097]
[1727464976324,3.69038,2709.8,2709.3,3.69097]
[1727464977093,3.69038,2709.8,2709.4,3.69084]
[1727464977698,0.8454,2709.7,2709.2,6.69103]
[1727464977911,3.69058,2709.6,2709.2,6.69103]
[1727464978229,0.8454,2709.7,2709.3,3.69095]
[1727464978991,4.53597,2709.7,2709.2,3.69103]
[1727464979905,1.82146339,2709.7,2708.9,0.7987]
[1727464980105,1.82146339,2709.7,2708.4,11.04214]
[1727464980106,3.3557473,2709.7,2708.7,0.7987]
[1727464980288,2.39232003,2709.6,2708.7,0.7987]
[1727464980491,0.8454,2709.2,2708.7,4.49044]
[1727464980805,3.6914,2709.0,2708.5,3.69197]
[1727464981011,4.5366,2709.2,2708.5,3.69197]
[1727464981207,4.5366,2709.2,2708.7,3.69178]
[1727464981493,5.51278239,2709.2,2708.7,3.69178]
[1727464982024,4.5366,2709.2,2708.5,3.69197]
[1727464982237,3.69163,2708.9,2708.4,4.5299]
[1727464982400,3.69163,2708.9,2708.5,3.0]
[1727464982587,3.69135,2709.1,2708.5,3.69198]
[1727464982791,1.53428391,2709.3,2708.8,3.69157]
[1727464983029,4.51895,2709.4,2708.9,3.69145]
[1727464983232,4.51885,2709.4,2709.0,3.69137]
[1727464983409,5.68660592,2709.4,2709.0,3.69137]
[1727464984402,5.68660592,2709.4,2708.9,3.69152]
[1727464984604,1.99575592,2709.4,2709.0,3.69137]
[1727464985429,3.69081,2709.5,2709.0,7.38268]
[1727464985601,3.69081,2709.5,2709.0,3.69131]
[1727464986726,7.38162,2709.5,2709.0,3.69131]
[1727464986907,3.69081,2709.5,2709.0,3.69131]
[1727464987307,4.66517239,2709.5,2709.0,3.69131]
[1727464988104,8.35597239,2709.5,2709.0,3.69131]
[1727464989230,4.66516239,2709.5,2709.0,3.69131]
[1727464989428,3.69087,2709.4,2709.0,3.69131]
[1727464989598,0.97436239,2709.5,2709.0,3.69131]
[1727464989796,3.69087,2709.4,2709.0,3.69131]
[1727464990809,1.93327346,2709.8,2709.0,3.69131]
[1727464990810,5.22481391,2709.7,2709.2,3.6911]
[1727464991134,5.22481391,2709.7,2709.1,3.69118]